fUSD/lending_fUSD_20241222
["ID","MTS","AMOUNT","RATE_DAILY","PERIOD"]
[346299434,1734879055020,-736.71526164,0.0001999,2]
[346299436,1734879055029,-300.0,0.00019993,2]
[346299438,1734879055038,-300.0,0.00019994,2]
[346299440,1734879055047,-150.0,0.00019995,2]
[346299441,1734879055056,-2685.2974222,0.00019996,2]
[346299444,1734879055066,-2356.163173,0.00019996,2]
[346299446,1734879055075,-2027.0289239,0.00019996,2]
[346299448,1734879055084,-1697.8946747,0.00019996,2]
[346299450,1734879055095,-1368.7604255,0.00019996,2]
[346299451,1734879055104,-1039.6261763,0.00019996,2]
[346299453,1734879055114,-2038.8160672,0.00019996,2]
[346299455,1734879055124,-1788.9203983,0.00019996,2]
[346299457,1734879055134,-1539.0247294,0.00019996,2]
[346299460,1734879055143,-1289.1290606,0.00019996,2]
[346299461,1734879055152,-1039.2333917,0.00019996,2]
[346299463,1734879055164,-789.3377228,0.00019996,2]
[346299465,1734879055175,-150.0,0.00019996,2]
[346299468,1734879055184,-150.0,0.00019997,2]
[346299469,1734879055194,-1714.88,0.00019999,2]
[346299471,1734879055204,-1714.88,0.00019999,2]
[346299474,1734879055214,-1714.88,0.00019999,2]
[346299475,1734879055223,-1714.88,0.00019999,2]
[346299477,1734879055233,-1714.88,0.00019999,2]
[346299479,1734879055242,-1714.88,0.00019999,2]
[346299481,1734879055252,-1714.88,0.00019999,2]
[346299483,1734879055261,-1714.88,0.00019999,2]
[346299485,1734879055270,-1714.88,0.00019999,2]
[346299487,1734879055280,-1714.88,0.00019999,2]
[346299489,1734879055289,-1714.88,0.00019999,2]
[346299491,1734879055298,-1714.88,0.00019999,2]
[346299493,1734879055308,-1714.88,0.00019999,2]
[346299495,1734879055317,-1714.95,0.00019999,2]
[346299497,1734879055328,-249.56942159,0.00019999,2]
[346299499,1734879055337,-249.56942159,0.00019999,2]
[346299501,1734879055349,-249.56942159,0.00019999,2]
[346299503,1734879055358,-249.56942159,0.00019999,2]
[346299505,1734879055368,-249.56942159,0.00019999,2]
[346299507,1734879055377,-249.56942159,0.00019999,2]
[346299510,1734879055386,-249.56942159,0.00019999,2]
[346299511,1734879055396,-249.56942159,0.00019999,2]
[346299513,1734879055405,-249.56942159,0.00019999,2]
[346299516,1734879055415,-249.56942159,0.00019999,2]
[346299517,1734879055425,-249.56942159,0.00019999,2]
[346299520,1734879055434,-249.56942159,0.00019999,2]
[346299521,1734879055443,-249.56942159,0.00019999,2]
[346299523,1734879055452,-249.56942159,0.00019999,2]
[346299525,1734879055462,-249.56942159,0.00019999,2]
[346299527,1734879055471,-249.56942159,0.00019999,2]
[346299530,1734879055481,-249.56942159,0.00019999,2]
[346299532,1734879055494,-249.56942159,0.00019999,2]
[346299534,1734879055504,-249.56942159,0.00019999,2]
[346299535,1734879055513,-249.56942159,0.00019999,2]
[346299538,1734879055523,-249.56942159,0.00019999,2]
[346299539,1734879055533,-249.56942159,0.00019999,2]
[346299542,1734879055543,-249.56942159,0.00019999,2]
[346299543,1734879055552,-249.56942159,0.00019999,2]
[346299546,1734879055564,-249.56942159,0.00019999,2]
[346299548,1734879055575,-249.56942159,0.00019999,2]
[346299550,1734879055585,-249.56942159,0.00019999,2]
[346299552,1734879055597,-249.56942159,0.00019999,2]
[346299554,1734879055606,-249.56942159,0.00019999,2]
[346299556,1734879055616,-249.56942159,0.00019999,2]
[346299558,1734879055626,-249.56942159,0.00019999,2]
[346299560,1734879055635,-249.56942159,0.00019999,2]
[346299562,1734879055645,-1839232.88469655,0.0002,3]
[346299564,1734879055655,-579.46241347,0.0002,2]
[346299566,1734879055665,-14663.41422711,0.0002,3]
[346299568,1734879055675,-150.0,0.0002,4]
[346299570,1734879055685,-12013856.52354452,0.0002,2]
[346299572,1734879055694,-1000.0,0.0002,2]
[346299574,1734879055704,-1000.0,0.0002,2]
[346299576,1734879055714,-1000.0,0.0002,2]
[346299578,1734879055723,-1000.0,0.0002,2]
[346299580,1734879055733,-1000.0,0.0002,2]
[346299582,1734879055742,-1000.0,0.0002,2]
[346299584,1734879055751,-1000.0,0.0002,2]
[346299586,1734879055761,-1000.0,0.0002,2]
[346299588,1734879055772,-1000.0,0.0002,2]
[346299590,1734879055782,-1000.0,0.0002,2]
[346299592,1734879055792,-1000.0,0.0002,2]
[346299594,1734879055801,-1000.0,0.0002,2]
[346299596,1734879055810,-1000.0,0.0002,2]
[346299598,1734879055819,-1000.0,0.0002,2]
[346299600,1734879055828,-1000.0,0.0002,2]
[346299602,1734879055837,-1000.0,0.0002,2]
[346299605,1734879055849,-1000.0,0.0002,2]
[346299606,1734879055858,-1000.0,0.0002,2]
[346299609,1734879055867,-1000.0,0.0002,2]
[346299611,1734879055876,-1000.0,0.0002,2]
[346299612,1734879055886,-1000.0,0.0002,2]
[346299614,1734879055895,-1000.0,0.0002,2]
[346299616,1734879055905,-1000.0,0.0002,2]
[346299618,1734879055914,-1000.0,0.0002,2]
[346299620,1734879055923,-1000.0,0.0002,2]
[346299622,1734879055932,-1000.0,0.0002,2]
[346299625,1734879055942,-1000.0,0.0002,2]
[346299626,1734879055951,-1000.0,0.0002,2]
[346299628,1734879055960,-1000.0,0.0002,2]
[346299630,1734879055969,-1000.0,0.0002,2]
[346299632,1734879055978,-1000.0,0.0002,2]
[346299634,1734879055987,-1000.0,0.0002,2]
[346299636,1734879055997,-1000.0,0.0002,2]
[346299638,1734879056006,-217.14106938,0.0002,2]
[346299640,1734879056015,-202.6,0.0002,2]
[346299643,1734879056025,-5512.0,0.0002,2]
[346299645,1734879056035,-6500.0,0.0002,2]
[346299647,1734879056044,-297.45562122,0.0002,2]
[346299648,1734879056053,-25000.0,0.0002,2]
[346299650,1734879056063,-1389.03899863,0.0002,5]
[346299653,1734879056072,-31101.9081994,0.0002,2]
[346299655,1734879056082,-4501.03766763,0.0002,2]
[346299656,1734879056093,-79487.31583014,0.0002,4]
[346299658,1734879056103,-3950.0,0.0002,2]
[346299659,1734879056112,-56963.13170792,0.0002,2]
[346299660,1734879056122,-1236.41145142,0.0002,2]
[346299661,1734879056131,-37079611.26699141,0.0002,2]
[346299684,1734879056420,-11387.1505,0.0002,2]
[346299744,1734879056998,-500.0,0.00019178,2]
[346299746,1734879057007,-500.0,0.00019178,2]
[346299749,1734879057017,-500.0,0.00019178,2]
[346299750,1734879057026,-500.0,0.00019178,2]
[346299753,1734879057036,-500.0,0.00019178,2]
[346299755,1734879057045,-500.0,0.00019452,2]
[346299757,1734879057055,-500.0,0.00019452,2]
[346299758,1734879057064,-592.03,0.00019452,2]
[346299760,1734879057074,-283.51,0.00019452,2]
[346299762,1734879057084,-500.0,0.00019726,2]
[346299764,1734879057095,-500.0,0.00019726,2]
[346299766,1734879057104,-249.56942159,0.00019999,2]
[346299768,1734879057114,-42330.84751078,0.0002,2]
[346299771,1734879057125,-1996.53076137,0.0002,2]
[346299773,1734879057137,-2817.25897983,0.0002,2]
[346299775,1734879057148,-1063.56685,0.0002,2]
[346299779,1734879057174,-18105.73147517,0.0002,2]
[346299781,1734879057185,-2981.94530141,0.0002,2]
[346299783,1734879057196,-9215.32059837,0.0002,2]
[346299785,1734879057207,-7204.59203402,0.0002,2]
[346299787,1734879057218,-610.59010377,0.0002,2]
[346299790,1734879057229,-1399.44967474,0.0002,2]
[346299792,1734879057240,-838.68893181,0.0002,2]
[346299827,1734879057571,-321.36511144,0.00019178,2]
[346299829,1734879057583,-178.63488856,0.00019178,2]
[346299831,1734879057595,-500.0,0.00019178,2]
[346299833,1734879057606,-426.84,0.00019178,2]
[346299835,1734879057615,-500.0,0.00019178,2]
[346299837,1734879057624,-500.0,0.00019452,2]
[346299839,1734879057634,-500.0,0.00019452,2]
[346299841,1734879057643,-500.0,0.00019726,2]
[346299843,1734879057652,-249.56942159,0.00019999,2]
[346299845,1734879057661,-249.56942159,0.00019999,2]
[346299847,1734879057670,-249.56942159,0.00019999,2]
[346299849,1734879057680,-59991.76524482,0.0002,2]
[346299851,1734879057695,-1136.42593314,0.0002,2]
[346299853,1734879057706,-357.18,0.0002,2]
[346299856,1734879057717,-429.73984,0.0002,2]
[346299858,1734879057728,-288.26999,0.0002,2]
[346299885,1734879058000,-297.87810875,0.00019178,2]
[346299886,1734879058011,-202.12189125,0.00019178,2]
[346299887,1734879058021,-500.0,0.00019178,2]
[346299888,1734879058030,-500.0,0.00019452,2]
[346299889,1734879058039,-500.0,0.00019452,2]
[346299890,1734879058048,-175.65699463,0.00019726,2]
[346299891,1734879058059,-324.34300537,0.00019726,2]
[346299892,1734879058068,-249.56942159,0.00019999,2]
[346299893,1734879058077,-249.56942159,0.00019999,2]
[346299894,1734879058086,-249.56942159,0.00019999,2]
[346299896,1734879058097,-1202.45243033,0.0002,2]
[346299898,1734879058109,-1543.95444351,0.0002,2]
[346299900,1734879058120,-1293.62996354,0.0002,2]
[346299906,1734879058162,-500.0,0.00019726,2]
[346299908,1734879058171,-30159.16852999,0.0002,2]
[346299915,1734879058227,-500.0,0.00019452,2]
[346299917,1734879058236,-1682.32036601,0.0002,2]
[346299919,1734879058247,-4455.4639,0.0002,2]
[346299921,1734879058258,-16601.29999987,0.0002,2]
[346299923,1734879058269,-551.67499318,0.0002,2]
[346299930,1734879058320,-693.75774932,0.0002,2]
[346300785,1734879276257,157.41,0.00010137,2]
[346300786,1734880211234,-167.24,0.00013699,2]
[346300787,1734880211256,-182.48,0.00014605,2]
[346300788,1734880211279,-650.28,0.00015068,2]
[346300789,1734880221940,-49.72,0.00015068,2]
[346300790,1734880221962,-950.28,0.0001558,2]
[346300796,1734880232169,-373.44,0.0001558,2]
[346300797,1734880232179,-151.61663114,0.00016064,2]
[346300798,1734880232188,-500.0,0.00016164,2]
[346300799,1734880232198,-500.0,0.00016164,2]
[346300800,1734880232207,-700.0,0.00016438,2]
[346300801,1734880232216,-7672.22,0.00017304,2]
[346300802,1734880232225,-1000.0,0.00017323,2]
[346300803,1734880232235,-164.07,0.00017458,2]
[346300804,1734880232243,-250.0,0.00017496,2]
[346300805,1734880232252,-176.54,0.00017522,2]
[346300806,1734880232262,-300.0,0.00017583,2]
[346300807,1734880232272,-4008.02095012,0.00017584,2]
[346300808,1734880232284,-7865.84904988,0.00017584,2]
[346300809,1734880232293,-1167.42,0.00017608,2]
[346300810,1734880232303,-510.22,0.00017654,2]
[346300811,1734880232312,-250.0,0.00017654,2]
[346300812,1734880232322,-353.34,0.00017667,2]
[346300813,1734880232332,-200.0,0.00017667,2]
[346300814,1734880232341,-32346.08255877,0.00017689,2]
[346300815,1734880232350,-5757.07,0.00017749,2]
[346300816,1734880232359,-500.0,0.00017753,2]
[346300817,1734880232369,-250.0,0.00017801,2]
[346300818,1734880232378,-700.0,0.00017808,2]
[346300819,1734880232392,-1323.72,0.00017844,2]
[346300820,1734880232401,-500.0,0.00017918,2]
[346300821,1734880232411,-165.79,0.00017944,2]
[346300822,1734880232420,-150.0,0.00018,2]
[346300823,1734880232430,-150.0,0.00018,2]
[346300824,1734880232440,-150.0,0.00018,2]
[346300825,1734880232449,-15000.0,0.00018,2]
[346300826,1734880232459,-15770.82,0.00018037,2]
[346300827,1734880232469,-151.82,0.00018084,2]
[346300828,1734880232479,-500.0,0.000181,2]
[346300829,1734880232488,-151.82,0.00018106,2]
[346300830,1734880232497,-151.82,0.00018129,2]
[346300831,1734880232507,-151.82,0.00018151,2]
[346300832,1734880232516,-1484.8853136,0.00018161,2]
[346300833,1734880232528,-1015.1146864,0.00018161,2]
[346300834,1734880232537,-151.82,0.00018174,2]
[346300835,1734880232548,-300.0,0.00018487,2]
[346300836,1734880232557,-165.79,0.00018537,2]
[346300837,1734880232566,-8738.0,0.00018608,2]
[346300838,1734880232578,-1857.07189127,0.0001888,2]
[346300839,1734880232597,-12106.15301489,0.0001888,2]
[346300840,1734880232628,-1036.77509384,0.0001888,2]
[346300841,1734880232638,-2500.0,0.000189,2]
[346300842,1734880232648,-500.0,0.00018904,2]
[346300843,1734880232658,-700.0,0.00018904,2]
[346300844,1734880232668,-300.0,0.00018942,2]
[346300845,1734880232677,-11173.5228,0.00018978,2]
[346300846,1734880232686,-1316.7971,0.00018978,2]
[346300847,1734880232695,-10000.0,0.00019,2]
[346300848,1734880232704,-385.775,0.00019,2]
[346300849,1734880232714,-150.0,0.00019,2]
[346300851,1734880232723,-300.0,0.00019014,2]
[346300853,1734880232732,-158.20479793,0.00019041,2]
[346300855,1734880232741,-3954.55982034,0.00019043,2]
[346300857,1734880232751,-2500.0,0.00019077,2]
[346300859,1734880232760,-5507.33390489,0.00019078,2]
[346300861,1734880232769,-220.0,0.00019078,2]
[346300863,1734880232779,-474.975,0.00019078,2]
[346300866,1734880232788,-4323.8396,0.00019078,2]
[346300868,1734880232798,-1653.0029,0.00019078,2]
[346300870,1734880232807,-168.8545,0.00019078,2]
[346300872,1734880232816,-1000.0,0.00019078,2]
[346300873,1734880232828,-500.0,0.00019078,2]
[346300876,1734880232839,-1000.0,0.00019078,2]
[346300878,1734880232848,-9527.7167,0.00019078,2]
[346300880,1734880232858,-5000.0,0.00019078,2]
[346300882,1734880232867,-3208.0,0.000191,2]
[346300903,1734880233060,-30544.00735591,0.00019103,2]
[346300905,1734880233073,-165.79,0.00019129,2]
[346300907,1734880233082,-3954.55982033,0.00019138,2]
[346300909,1734880233093,-153.0,0.00019143,2]
[346300911,1734880233103,-153.0,0.00019143,2]
[346300913,1734880233112,-153.0,0.00019143,2]
[346300915,1734880233121,-153.0,0.00019143,2]
[346300917,1734880233130,-153.0,0.00019143,2]
[346300919,1734880233140,-153.0,0.00019143,2]
[346300921,1734880233150,-153.0,0.00019143,2]
[346300923,1734880233159,-153.0,0.00019143,2]
[346300925,1734880233169,-153.0,0.00019143,2]
[346300927,1734880233178,-153.0,0.00019143,2]
[346300929,1734880233187,-153.0,0.00019143,2]
[346300931,1734880233196,-153.0,0.00019143,2]
[346300933,1734880233206,-153.0,0.00019143,2]
[346300934,1734880233215,-153.0,0.00019143,2]
[346300935,1734880233224,-153.0,0.00019143,2]
[346300936,1734880233234,-153.0,0.00019143,2]
[346300937,1734880233244,-153.0,0.00019143,2]
[346300938,1734880233253,-153.0,0.00019143,2]
[346300939,1734880233262,-153.0,0.00019143,2]
[346300940,1734880233272,-153.0,0.00019143,2]
[346300941,1734880233282,-153.0,0.00019143,2]
[346300942,1734880233291,-153.0,0.00019143,2]
[346300943,1734880233303,-153.0,0.00019143,2]
[346300944,1734880233312,-153.0,0.00019143,2]
[346300945,1734880233322,-153.0,0.00019143,2]
[346300946,1734880233331,-153.0,0.00019143,2]
[346300947,1734880233341,-153.0,0.00019143,2]
[346300948,1734880233350,-153.0,0.00019143,2]
[346300949,1734880233360,-153.0,0.00019143,2]
[346300950,1734880233370,-153.0,0.00019143,2]
[346300951,1734880233381,-153.0,0.00019143,2]
[346300952,1734880233393,-153.0,0.00019143,2]
[346300953,1734880233403,-153.0,0.00019143,2]
[346300954,1734880233412,-153.0,0.00019143,2]
[346300955,1734880233423,-153.0,0.00019143,2]
[346300956,1734880233433,-153.0,0.00019143,2]
[346300957,1734880233442,-153.0,0.00019143,2]
[346300958,1734880233451,-153.0,0.00019143,2]
[346300959,1734880233462,-153.0,0.00019143,2]
[346300960,1734880233471,-153.0,0.00019143,2]
[346300961,1734880233480,-153.0,0.00019143,2]
[346300962,1734880233490,-153.0,0.00019143,2]
[346300963,1734880233499,-153.0,0.00019143,2]
[346300964,1734880233508,-153.0,0.00019143,2]
[346300965,1734880233518,-153.0,0.00019143,2]
[346300966,1734880233527,-153.0,0.00019143,2]
[346300967,1734880233537,-153.0,0.00019143,2]
[346300968,1734880233546,-153.0,0.00019143,2]
[346300969,1734880233555,-153.0,0.00019143,2]
[346300970,1734880233566,-153.0,0.00019143,2]
[346300971,1734880233576,-153.0,0.00019143,2]
[346300972,1734880233586,-153.0,0.00019143,2]
[346300973,1734880233597,-153.0,0.00019143,2]
[346300974,1734880233607,-153.0,0.00019143,2]
[346300975,1734880233617,-153.0,0.00019143,2]
[346300976,1734880233627,-153.0,0.00019143,2]
[346300977,1734880233636,-153.0,0.00019143,2]
[346300978,1734880233645,-153.0,0.00019143,2]
[346300979,1734880233655,-915.24,0.00019167,2]
[346300980,1734880233664,-442.54290131,0.00019168,2]
[346300981,1734880233673,-915.24,0.00019168,2]
[346300982,1734880233682,-915.24,0.00019168,2]
[346300983,1734880233691,-915.24,0.00019168,2]
[346300984,1734880233700,-915.24,0.00019168,2]
[346300985,1734880233710,-5507.33390482,0.00019169,2]
[346300986,1734880233720,-493.76693344,0.00019173,2]
[346300987,1734880233730,-500.0,0.00019177,2]
[346300988,1734880233739,-500.0,0.00019177,2]
[346300989,1734880233748,-408.45458068,0.00019177,2]
[346300990,1734880233758,-500.0,0.00019177,2]
[346300991,1734880233768,-500.0,0.00019177,2]
[346300992,1734880233778,-6.64748805,0.00019177,2]
[346300993,1734880233795,-493.35251195,0.00019177,2]
[346300994,1734880233804,-500.0,0.00019177,2]
[346300995,1734880233814,-338.0883399,0.00019177,2]
[346300996,1734880233823,-232.65082759,0.00019178,2]
[346300997,1734880233833,-509.12872382,0.00019178,2]
[346300998,1734880233841,-555.467644,0.00019178,2]
[346300999,1734880233851,-3335.593882,0.00019178,2]
[346301000,1734880233861,-500.0,0.00019178,2]
[346301001,1734880233874,-500.0,0.00019178,2]
[346301002,1734880233885,-500.0,0.00019178,2]
[346301003,1734880233895,-500.0,0.00019178,2]
[346301004,1734880233908,-500.0,0.00019178,2]
[346301005,1734880233921,-500.0,0.00019178,2]
[346301006,1734880233931,-500.0,0.00019178,2]
[346301007,1734880233940,-500.0,0.00019178,2]
[346301008,1734880233949,-500.0,0.00019178,2]
[346301009,1734880233959,-500.0,0.00019178,2]
[346301010,1734880233968,-500.0,0.00019178,2]
[346301011,1734880233977,-500.0,0.00019178,2]
[346301012,1734880233986,-500.0,0.00019178,2]
[346301013,1734880233995,-500.0,0.00019178,2]
[346301014,1734880234004,-500.0,0.00019178,2]
[346301015,1734880234014,-500.0,0.00019178,2]
[346301016,1734880234024,-500.0,0.00019178,2]
[346301017,1734880234034,-500.0,0.00019178,2]
[346301018,1734880234043,-500.0,0.00019178,2]
[346301019,1734880234052,-500.0,0.00019178,2]
[346301020,1734880234062,-502.81891276,0.00019178,2]
[346301021,1734880234072,-500.0,0.00019178,2]
[346301022,1734880234083,-500.0,0.00019178,2]
[346301023,1734880234093,-500.0,0.00019178,2]
[346301024,1734880234102,-500.0,0.00019178,2]
[346301025,1734880234112,-500.0,0.00019178,2]
[346301026,1734880234121,-500.0,0.00019178,2]
[346301027,1734880234130,-500.0,0.00019178,2]
[346301028,1734880234140,-500.0,0.00019178,2]
[346301029,1734880234149,-500.0,0.00019178,2]
[346301030,1734880234159,-500.0,0.00019178,2]
[346301031,1734880234169,-500.0,0.00019178,2]
[346301032,1734880234179,-500.0,0.00019178,2]
[346301033,1734880234188,-500.0,0.00019178,2]
[346301034,1734880234198,-500.0,0.00019178,2]
[346301035,1734880234207,-508.05814547,0.00019178,2]
[346301036,1734880234216,-629.06194873,0.00019178,2]
[346301037,1734880234226,-500.0,0.00019178,2]
[346301038,1734880234235,-500.0,0.00019178,2]
[346301039,1734880234245,-500.0,0.00019178,2]
[346301040,1734880234254,-362.28875376,0.00019178,2]
[346301041,1734880234263,-500.0,0.00019178,2]
[346301042,1734880234273,-500.0,0.00019178,2]
[346301043,1734880234283,-1019.06,0.00019178,2]
[346301044,1734880234293,-504.07576355,0.00019178,2]
[346301045,1734880234303,-500.0,0.00019178,2]
[346301046,1734880234312,-500.0,0.00019178,2]
[346301047,1734880234322,-500.0,0.00019178,2]
[346301048,1734880234334,-500.0,0.00019178,2]
[346301049,1734880234344,-500.0,0.00019178,2]
[346301050,1734880234353,-500.0,0.00019178,2]
[346301051,1734880234363,-505.2549466,0.00019178,2]
[346301052,1734880234372,-500.0,0.00019178,2]
[346301053,1734880234383,-500.0,0.00019178,2]
[346301054,1734880234393,-500.0,0.00019178,2]
[346301055,1734880234403,-509.46817488,0.00019178,2]
[346301056,1734880234413,-500.0,0.00019178,2]
[346301057,1734880234423,-500.0,0.00019178,2]
[346301058,1734880234434,-502.28905483,0.00019178,2]
[346301059,1734880234443,-277.49339158,0.00019178,2]
[346301060,1734880234452,-500.0,0.00019178,2]
[346301061,1734880234463,-621.69,0.00019178,2]
[346301062,1734880234472,-500.0,0.00019178,2]
[346301063,1734880234481,-387.30007573,0.00019178,2]
[346301064,1734880234508,-112.69992427,0.00019178,2]
[346301065,1734880234518,-500.0,0.00019178,2]
[346301066,1734880234527,-1232.4,0.00019178,2]
[346301067,1734880234536,-82.18240417,0.00019178,2]
[346301072,1734880238217,-417.81759583,0.00019178,2]
[346301073,1734880238227,-500.0,0.00019178,2]
[346301074,1734880238237,-500.0,0.00019178,2]
[346301075,1734880238247,-225.68240418,0.00019178,2]
[346301076,1734880238259,-274.31759582,0.00019178,2]
[346301077,1734880238268,-500.0,0.00019178,2]
[346301078,1734880238277,-500.0,0.00019178,2]
[346301079,1734880238287,-500.0,0.00019178,2]
[346301080,1734880238296,-500.0,0.00019178,2]
[346301081,1734880238306,-500.0,0.00019178,2]
[346301082,1734880238316,-574.87,0.00019178,2]
[346301083,1734880238325,-500.0,0.00019178,2]
[346301084,1734880238334,-909.49,0.00019178,2]
[346301085,1734880238343,-500.0,0.00019178,2]
[346301086,1734880238353,-500.0,0.00019178,2]
[346301087,1734880238362,-500.0,0.00019178,2]
[346301088,1734880238371,-500.0,0.00019178,2]
[346301089,1734880238382,-574.532451,0.00019178,2]
[346301090,1734880238395,-500.0,0.00019178,2]
[346301091,1734880238404,-512.36,0.00019178,2]
[346301092,1734880238413,-500.0,0.00019178,2]
[346301093,1734880238423,-300.74046055,0.00019178,2]
[346301094,1734880238433,-500.0,0.00019178,2]
[346301095,1734880238442,-500.0,0.00019178,2]
[346301096,1734880238452,-500.0,0.00019178,2]
[346301097,1734880238462,-464.41481989,0.00019178,2]
[346301098,1734880238472,-500.0,0.00019178,2]
[346301099,1734880238481,-500.0,0.00019178,2]
[346301100,1734880238490,-500.0,0.00019178,2]
[346301101,1734880238500,-500.0,0.00019178,2]
[346301102,1734880238510,-511.36717699,0.00019178,2]
[346301103,1734880238519,-500.0,0.00019178,2]
[346301104,1734880238529,-500.0,0.00019178,2]
[346301105,1734880238539,-576.75,0.00019178,2]
[346301106,1734880238548,-500.0,0.00019178,2]
[346301108,1734880238558,-508.21439782,0.00019178,2]
[346301110,1734880238567,-500.0,0.00019178,2]
[346301112,1734880238577,-159.09,0.00019178,2]
[346301114,1734880238586,-503.54279972,0.00019178,2]
[346301116,1734880238596,-500.0,0.00019178,2]
[346301118,1734880238605,-500.0,0.00019178,2]
[346301120,1734880238614,-896.47,0.00019178,2]
[346301122,1734880238623,-500.0,0.00019178,2]
[346301124,1734880238632,-500.0,0.00019178,2]
[346301126,1734880238642,-503.64727722,0.00019178,2]
[346301128,1734880238651,-500.0,0.00019178,2]
[346301129,1734880238660,-503.04768019,0.00019178,2]
[346301131,1734880238670,-500.0,0.00019178,2]
[346301133,1734880238679,-500.0,0.00019178,2]
[346301135,1734880238689,-538.08,0.00019178,2]
[346301138,1734880238699,-500.0,0.00019178,2]
[346301140,1734880238708,-500.0,0.00019178,2]
[346301141,1734880238717,-500.0,0.00019178,2]
[346301143,1734880238727,-480.6491822,0.00019178,2]
[346301145,1734880238736,-503.65750257,0.00019178,2]
[346301147,1734880238746,-500.0,0.00019178,2]
[346301149,1734880238755,-500.0,0.00019178,2]
[346301151,1734880238764,-500.0,0.00019178,2]
[346301153,1734880238773,-500.0,0.00019178,2]
[346301155,1734880238782,-500.0,0.00019178,2]
[346301157,1734880238791,-575.27,0.00019178,2]
[346301159,1734880238801,-500.0,0.00019178,2]
[346301160,1734880238810,-498.9555128,0.00019178,2]
[346301161,1734880238820,-503.96663872,0.00019178,2]
[346301162,1734880238831,-500.0,0.00019178,2]
[346301163,1734880238840,-500.0,0.00019178,2]
[346301164,1734880238850,-500.0,0.00019178,2]
[346301165,1734880238860,-500.0,0.00019178,2]
[346301166,1734880238869,-502.81511076,0.00019178,2]
[346301167,1734880238879,-568.22,0.00019178,2]
[346301168,1734880238888,-500.0,0.00019178,2]
[346301169,1734880238898,-500.0,0.00019178,2]
[346301170,1734880238908,-500.0,0.00019178,2]
[346301171,1734880238917,-500.0,0.00019178,2]
[346301172,1734880238926,-532.69508909,0.00019178,2]
[346301173,1734880238936,-502.79332378,0.00019178,2]
[346301174,1734880238945,-643.4,0.00019178,2]
[346301175,1734880238955,-507.84270705,0.00019178,2]
[346301176,1734880238964,-551.85506204,0.00019178,2]
[346301177,1734880238974,-500.0,0.00019178,2]
[346301178,1734880238983,-500.0,0.00019178,2]
[346301179,1734880238992,-500.0,0.00019178,2]
[346301181,1734880239001,-500.0,0.00019178,2]
[346301183,1734880239011,-531.39,0.00019178,2]
[346301185,1734880239021,-500.0,0.00019178,2]
[346301187,1734880239031,-500.0,0.00019178,2]
[346301188,1734880239040,-517.91351911,0.00019178,2]
[346301191,1734880239050,-500.0,0.00019178,2]
[346301193,1734880239059,-500.0,0.00019178,2]
[346301194,1734880239068,-480.54,0.00019178,2]
[346301196,1734880239078,-500.0,0.00019178,2]
[346301198,1734880239088,-500.0,0.00019178,2]
[346301200,1734880239097,-562.79,0.00019178,2]
[346301202,1734880239106,-500.0,0.00019178,2]
[346301204,1734880239116,-500.0,0.00019178,2]
[346301206,1734880239125,-500.0,0.00019178,2]
[346301208,1734880239135,-500.0,0.00019178,2]